[Event "GrandPrix_30.05"]
[Site "Chess.com"]
[Date "2020.05.30"]
[Round "1"]
[White "caspiwins"]
[Black "ftorodent"]
[Result "1-0"]
[WhiteElo "2424"]
[BlackElo "2076"]
[TimeControl "600+2"]
[EndTime "8:27:05 PDT"]
[Termination "caspiwins won on time"]

1. e4 {[%clk 0:10:01.9]} 1... c5 {[%clk 0:09:58.4]} 2. Nf3 {[%clk 0:10:02.2]}
2... e6 {[%clk 0:09:59.3]} 3. d4 {[%clk 0:10:00.6]} 3... cxd4 {[%clk 0:10:00.1]}
4. Nxd4 {[%clk 0:10:02.5]} 4... a6 {[%clk 0:10:00.8]} 5. Nc3 {[%clk 0:10:02.9]}
5... b5 {[%clk 0:10:00.8]} 6. Bd3 {[%clk 0:10:03.6]} 6... Qb6 {[%clk 0:09:53.8]}
7. Nf3 {[%clk 0:10:03.8]} 7... Nc6 {[%clk 0:09:53.1]} 8. O-O {[%clk 0:09:55.5]}
8... d6 {[%clk 0:09:46.2]} 9. a4 {[%clk 0:09:25.3]} 9... b4 {[%clk 0:09:36.4]}
10. a5 {[%clk 0:09:26.3]} 10... Qc7 {[%clk 0:08:46.8]} 11. Na4 {[%clk
0:09:26.8]} 11... Bb7 {[%clk 0:08:22]} 12. Be3 {[%clk 0:08:56.6]} 12... Nf6
{[%clk 0:08:19.7]} 13. Nb6 {[%clk 0:08:56.7]} 13... Ra7 {[%clk 0:08:20.6]} 14.
Nc4 {[%clk 0:08:31]} 14... Ra8 {[%clk 0:08:21]} 15. Bb6 {[%clk 0:07:59.8]} 15...
Qb8 {[%clk 0:07:56.7]} 16. Re1 {[%clk 0:07:42.9]} 16... Be7 {[%clk 0:07:47.4]}
17. Qd2 {[%clk 0:07:01.4]} 17... O-O {[%clk 0:07:42.3]} 18. Nd4 {[%clk
0:07:01.9]} 18... d5 {[%clk 0:06:44.9]} 19. exd5 {[%clk 0:07:02.3]} 19... Nxd5
{[%clk 0:06:46]} 20. Nxc6 {[%clk 0:07:03.2]} 20... Bxc6 {[%clk 0:06:46.1]} 21.
Ne5 {[%clk 0:07:04.7]} 21... Qb7 {[%clk 0:06:18.1]} 22. Nxc6 {[%clk 0:06:44.8]}
22... Qxc6 {[%clk 0:06:18]} 23. Be4 {[%clk 0:06:46.2]} 23... Bc5 {[%clk
0:06:02.2]} 24. Qd3 {[%clk 0:05:58.3]} 24... g6 {[%clk 0:05:35.6]} 25. Qc4
{[%clk 0:05:31.5]} 25... Rfc8 {[%clk 0:05:27.9]} 26. Bxc5 {[%clk 0:05:16.9]}
26... Qxc5 {[%clk 0:05:28.2]} 27. Qd3 {[%clk 0:05:16.7]} 27... Ra7 {[%clk
0:05:15.9]} 28. Bxd5 {[%clk 0:05:09.9]} 28... Qxd5 {[%clk 0:05:04.2]} 29. Qxd5
{[%clk 0:05:10.8]} 29... exd5 {[%clk 0:05:05.2]} 30. Ra4 {[%clk 0:05:04.7]}
30... Rb7 {[%clk 0:04:48.9]} 31. Re2 {[%clk 0:05:05.4]} 31... b3 {[%clk
0:03:02.1]} 32. c3 {[%clk 0:05:06.1]} 32... Rxc3 {[%clk 0:03:02.8]} 33. bxc3
{[%clk 0:05:08]} 33... b2 {[%clk 0:03:04]} 34. Rxb2 {[%clk 0:05:09.1]} 34...
Rxb2 {[%clk 0:03:04.7]} 35. g3 {[%clk 0:05:02.6]} 35... Kg7 {[%clk 0:02:38]} 36.
Kg2 {[%clk 0:04:16.5]} 36... h5 {[%clk 0:02:37.5]} 37. c4 {[%clk 0:04:11.1]}
37... dxc4 {[%clk 0:02:36.1]} 38. Rxc4 {[%clk 0:04:11.6]} 38... Rb5 {[%clk
0:02:37.4]} 39. Ra4 {[%clk 0:04:12.1]} 39... Kf6 {[%clk 0:02:37.7]} 40. h4
{[%clk 0:04:12.4]} 40... Ke5 {[%clk 0:02:37.4]} 41. Kf3 {[%clk 0:04:00.7]} 41...
f6 {[%clk 0:02:36.9]} 42. Ke3 {[%clk 0:03:50.3]} 42... Rb3+ {[%clk 0:02:36.7]}
43. Ke2 {[%clk 0:03:51.5]} 43... Rb5 {[%clk 0:02:31.7]} 44. Ke3 {[%clk
0:03:49.2]} 44... Kd6 {[%clk 0:02:11.6]} 45. Rf4 {[%clk 0:03:43.2]} 45... Ke6
{[%clk 0:02:09.4]} 46. Ra4 {[%clk 0:03:39.2]} 46... g5 {[%clk 0:02:09.4]} 47.
Kd3 {[%clk 0:02:48.4]} 47... Kf5 {[%clk 0:02:09.2]} 48. Ke3 {[%clk 0:02:44.9]}
48... Rb3+ {[%clk 0:02:07.8]} 49. Ke2 {[%clk 0:02:46.1]} 49... Rb5 {[%clk
0:02:08.8]} 50. Ke3 {[%clk 0:02:44]} 50... Re5+ {[%clk 0:02:09]} 51. Kf3 {[%clk
0:02:40.8]} 51... g4+ {[%clk 0:02:00.9]} 52. Kg2 {[%clk 0:02:41.5]} 52... Re4
{[%clk 0:02:02]} 53. Ra2 {[%clk 0:02:37.4]} 53... Rb4 {[%clk 0:02:00.7]} 54. f3
{[%clk 0:02:28.1]} 54... gxf3+ {[%clk 0:01:34.6]} 55. Kxf3 {[%clk 0:02:28.6]}
55... Rb3+ {[%clk 0:01:35.6]} 56. Kg2 {[%clk 0:02:13]} 56... Ke4 {[%clk
0:01:22.5]} 57. Re2+ {[%clk 0:01:51.9]} 57... Kd5 {[%clk 0:01:13.9]} 58. Rf2
{[%clk 0:01:38.1]} 58... Ke6 {[%clk 0:01:07.4]} 59. Rc2 {[%clk 0:01:33.6]} 59...
Kd6 {[%clk 0:01:02]} 60. Rf2 {[%clk 0:01:33.6]} 60... Ke7 {[%clk 0:01:00.7]} 61.
Rf5 {[%clk 0:01:24.1]} 61... Kf7 {[%clk 0:00:54.6]} 62. Rxh5 {[%clk 0:01:23.2]}
62... Kg6 {[%clk 0:00:55.4]} 63. Rc5 {[%clk 0:01:22.2]} 63... Ra3 {[%clk
0:00:56.3]} 64. Kh3 {[%clk 0:01:19]} 64... Ra4 {[%clk 0:00:57.1]} 65. Rd5 {[%clk
0:01:17.7]} 65... Kh6 {[%clk 0:00:55.8]} 66. Rf5 {[%clk 0:01:14.1]} 66... Kg6
{[%clk 0:00:56.6]} 67. Rc5 {[%clk 0:01:15.2]} 67... Ra3 {[%clk 0:00:57.3]} 68.
h5+ {[%clk 0:01:14.5]} 68... Kh6 {[%clk 0:00:58.1]} 69. Kg4 {[%clk 0:01:13]}
69... Ra4+ {[%clk 0:00:53.2]} 70. Kf5 {[%clk 0:01:12.9]} 70... Kxh5 {[%clk
0:00:53.1]} 71. Kxf6+ {[%clk 0:01:11.8]} 71... Kg4 {[%clk 0:00:54]} 72. Rg5+
{[%clk 0:01:10.7]} 72... Kf3 {[%clk 0:00:54.6]} 73. Ke6 {[%clk 0:01:07.9]} 73...
Rd4 {[%clk 0:00:50.8]} 74. Rd5 {[%clk 0:00:40.8]} 74... Ra4 {[%clk 0:00:35.2]}
75. Kd6 {[%clk 0:00:35.7]} 75... Kxg3 {[%clk 0:00:35.1]} 76. Kc7 {[%clk
0:00:36.7]} 76... Rb4 {[%clk 0:00:31.3]} 77. Rd6 {[%clk 0:00:36.7]} 77... Kf4
{[%clk 0:00:22.3]} 78. Rxa6 {[%clk 0:00:37.4]} 78... Rb5 {[%clk 0:00:16]} 79.
Kc6 {[%clk 0:00:29.9]} 79... Rh5 {[%clk 0:00:15.5]} 80. Ra8 {[%clk 0:00:25.1]}
80... Ke4 {[%clk 0:00:13.9]} 81. a6 {[%clk 0:00:22.6]} 81... Rh6+ {[%clk
0:00:14.9]} 82. Kb5 {[%clk 0:00:23.3]} 82... Rh5+ {[%clk 0:00:15.8]} 83. Kc4
{[%clk 0:00:22.6]} 83... Re5 {[%clk 0:00:10.1]} 84. Rc8 {[%clk 0:00:14.2]} 84...
Ra5 {[%clk 0:00:10]} 85. Rc6 {[%clk 0:00:14]} 85... Ra1 {[%clk 0:00:10.7]} 86.
Kb5 {[%clk 0:00:14.1]} 86... Kd5 {[%clk 0:00:11.5]} 87. Rc2 {[%clk 0:00:11.8]}
87... Rb1+ {[%clk 0:00:11.1]} 88. Ka5 {[%clk 0:00:13]} 88... Ra1+ {[%clk
0:00:10.4]} 89. Kb6 {[%clk 0:00:14.2]} 89... Rb1+ {[%clk 0:00:11.6]} 90. Kc7
{[%clk 0:00:13.8]} 90... Ra1 {[%clk 0:00:10.9]} 91. Rc6 {[%clk 0:00:13.3]} 91...
Ra2 {[%clk 0:00:10.7]} 92. Kb7 {[%clk 0:00:13.8]} 92... Rb2+ {[%clk 0:00:11.1]}
93. Rb6 {[%clk 0:00:14.4]} 93... Rh2 {[%clk 0:00:11.4]} 94. a7 {[%clk
0:00:14.9]} 94... Rh7+ {[%clk 0:00:11.9]} 95. Ka6 {[%clk 0:00:15.6]} 95... Rh8
{[%clk 0:00:12.9]} 96. Rb8 {[%clk 0:00:16.5]} 1-0

[Event "GrandPrix_30.05"]
[Site "Chess.com"]
[Date "2020.05.30"]
[Round "1"]
[White "ly4o"]
[Black "jncool68"]
[Result "0-1"]
[WhiteElo "2018"]
[BlackElo "2357"]
[TimeControl "600+2"]
[EndTime "8:28:20 PDT"]
[Termination "jncool68 won by resignation"]

1. d4 {[%clk 0:10:01.6]} 1... Nf6 {[%clk 0:09:59.8]} 2. c4 {[%clk 0:10:02.5]}
2... e6 {[%clk 0:10:00.6]} 3. Nf3 {[%clk 0:10:02.4]} 3... Bb4+ {[%clk
0:09:59.8]} 4. Bd2 {[%clk 0:10:02.2]} 4... Qe7 {[%clk 0:09:59.8]} 5. g3 {[%clk
0:10:01.2]} 5... Nc6 {[%clk 0:10:00.4]} 6. Nc3 {[%clk 0:10:02.1]} 6... O-O
{[%clk 0:09:59.9]} 7. Bg2 {[%clk 0:10:02.5]} 7... Na5 {[%clk 0:10:00.5]} 8. b3
{[%clk 0:10:02.2]} 8... b6 {[%clk 0:10:01.5]} 9. O-O {[%clk 0:10:02]} 9... Bb7
{[%clk 0:10:01.2]} 10. Qc2 {[%clk 0:09:50.1]} 10... Rac8 {[%clk 0:09:59.6]} 11.
Bg5 {[%clk 0:09:37]} 11... h6 {[%clk 0:09:53.5]} 12. Bxf6 {[%clk 0:09:14.4]}
12... Qxf6 {[%clk 0:09:54.1]} 13. Ne5 {[%clk 0:09:15.5]} 13... Bxg2 {[%clk
0:09:34.6]} 14. Kxg2 {[%clk 0:09:17.4]} 14... Qe7 {[%clk 0:09:33.1]} 15. a3
{[%clk 0:09:14.3]} 15... Bxa3 {[%clk 0:09:11.2]} 16. Nb5 {[%clk 0:09:06.6]}
16... Bb4 {[%clk 0:09:11.2]} 17. Nxa7 {[%clk 0:09:07.4]} 17... Ra8 {[%clk
0:09:11.3]} 18. Nb5 {[%clk 0:09:08.4]} 18... c6 {[%clk 0:09:05]} 19. Nc3 {[%clk
0:09:09.2]} 19... d5 {[%clk 0:08:51.1]} 20. Na4 {[%clk 0:08:58.1]} 20... dxc4
{[%clk 0:07:40.6]} 21. bxc4 {[%clk 0:08:17]} 21... c5 {[%clk 0:07:39.7]} 22.
dxc5 {[%clk 0:08:10.2]} 22... bxc5 {[%clk 0:07:36.1]} 23. Kg1 {[%clk 0:08:07.7]}
23... Qc7 {[%clk 0:07:25]} 24. Nd3 {[%clk 0:08:07.7]} 24... Rfb8 {[%clk
0:07:22.6]} 25. Rfb1 {[%clk 0:07:47.7]} 25... Qc6 {[%clk 0:07:22.6]} 26. Ne5
{[%clk 0:07:41.4]} 26... Qc7 {[%clk 0:07:19.3]} 27. Nd3 {[%clk 0:07:41.9]} 27...
Nc6 {[%clk 0:07:10.5]} 28. e3 {[%clk 0:07:19.5]} 28... Ne5 {[%clk 0:06:46.1]}
29. Nxe5 {[%clk 0:07:13.2]} 29... Qxe5 {[%clk 0:06:48]} 30. Ra2 {[%clk
0:06:55.6]} 30... Ra5 {[%clk 0:06:38.1]} 31. Rab2 {[%clk 0:06:51.4]} 31... Rba8
{[%clk 0:06:30.9]} 32. Nb6 {[%clk 0:06:35]} 32... R8a6 {[%clk 0:06:23.4]} 33.
Nd7 {[%clk 0:06:33.6]} 33... Qc7 {[%clk 0:06:23.9]} 34. Nxc5 {[%clk 0:05:49.7]}
34... Bxc5 {[%clk 0:06:22.5]} 35. Rb8+ {[%clk 0:05:51.6]} 35... Bf8 {[%clk
0:06:22.6]} 36. Qe4 {[%clk 0:05:42.2]} 36... Ra1 {[%clk 0:06:12.8]} 37. Kg2
{[%clk 0:05:42.4]} 37... Rxb1 {[%clk 0:06:13.3]} 38. Qxb1 {[%clk 0:05:44.3]}
38... Qxc4 {[%clk 0:05:59.4]} 39. Kg1 {[%clk 0:05:34.3]} 39... Rc6 {[%clk
0:05:55.3]} 40. Qb7 {[%clk 0:05:31.8]} 40... Qd5 {[%clk 0:05:44.4]} 41. Qb1
{[%clk 0:05:32]} 41... Qd7 {[%clk 0:05:39.9]} 42. Rb7 {[%clk 0:05:25.8]} 42...
Rc7 {[%clk 0:05:40.6]} 43. Rb8 {[%clk 0:05:26.9]} 43... Rc8 {[%clk 0:05:41.6]}
44. Rb7 {[%clk 0:05:26.9]} 44... Qc6 {[%clk 0:05:41.3]} 45. Qb3 {[%clk 0:05:22]}
45... Qd5 {[%clk 0:05:37.1]} 46. Qb1 {[%clk 0:05:21.9]} 46... Rc1+ {[%clk
0:05:37.6]} 47. Qxc1 {[%clk 0:05:21.5]} 47... Qxb7 {[%clk 0:05:39.2]} 48. h4
{[%clk 0:05:22.7]} 48... Qd5 {[%clk 0:05:34.5]} 49. Qc8 {[%clk 0:05:21.2]} 49...
g5 {[%clk 0:05:33.2]} 50. hxg5 {[%clk 0:05:21.5]} 50... hxg5 {[%clk 0:05:35.1]}
51. Qb8 {[%clk 0:05:18]} 51... Kg7 {[%clk 0:05:34.7]} 52. Qb2+ {[%clk
0:05:18.8]} 52... e5 {[%clk 0:05:32.3]} 53. Qc2 {[%clk 0:05:18.4]} 53... Be7
{[%clk 0:05:27.3]} 54. Qf5 {[%clk 0:05:17.3]} 54... Qe6 {[%clk 0:05:26.2]} 55.
Qc2 {[%clk 0:05:17.6]} 55... e4 {[%clk 0:05:10.8]} 56. Qc3+ {[%clk 0:05:15.4]}
56... Bf6 {[%clk 0:05:11.7]} 57. Qc5 {[%clk 0:05:16]} 57... Qe5 {[%clk
0:05:10.7]} 58. Qc8 {[%clk 0:05:15.1]} 58... Qa1+ {[%clk 0:05:07]} 59. Kg2
{[%clk 0:05:15.9]} 59... Qd1 {[%clk 0:05:07]} 60. Qe8 {[%clk 0:05:02.8]} 60...
Qf3+ {[%clk 0:05:06.6]} 61. Kg1 {[%clk 0:05:04.1]} 61... Bc3 {[%clk 0:05:01]}
62. Qe7 {[%clk 0:05:04]} 62... Qf6 {[%clk 0:04:41.8]} 63. Qxe4 {[%clk
0:05:03.6]} 63... Be1 {[%clk 0:04:42.1]} 64. Qc2 {[%clk 0:04:55.4]} 64... Bc3
{[%clk 0:04:35.8]} 65. Kg2 {[%clk 0:04:54.6]} 65... Qc6+ {[%clk 0:04:28.5]} 66.
Kg1 {[%clk 0:04:54.4]} 66... Qc5 {[%clk 0:04:29.3]} 67. Qe4 {[%clk 0:04:51]}
67... Qe5 {[%clk 0:04:29]} 68. Qd3 {[%clk 0:04:50]} 68... g4 {[%clk 0:04:26.8]}
69. Qc4 {[%clk 0:04:47.5]} 69... f5 {[%clk 0:04:25.8]} 70. Qc6 {[%clk
0:04:46.4]} 70... Bb4 {[%clk 0:04:22.4]} 71. Qd7+ {[%clk 0:04:44.7]} 71... Be7
{[%clk 0:04:22.7]} 72. Qe8 {[%clk 0:04:44.4]} 72... Kf6 {[%clk 0:04:22.4]} 73.
Qh8+ {[%clk 0:04:44.6]} 73... Ke6 {[%clk 0:04:22.5]} 74. Qg8+ {[%clk 0:04:45.5]}
74... Kd6 {[%clk 0:04:22.7]} 75. Qb8+ {[%clk 0:04:46.1]} 75... Kd5 {[%clk
0:04:23.2]} 76. Qb7+ {[%clk 0:04:44.7]} 76... Kc4 {[%clk 0:04:23.2]} 77. Qc8+
{[%clk 0:04:41.3]} 77... Bc5 {[%clk 0:04:23.5]} 78. Qg8+ {[%clk 0:04:40.8]}
78... Kc3 {[%clk 0:04:24.1]} 79. Qa2 {[%clk 0:04:40.9]} 79... Kb4 {[%clk
0:04:17.2]} 80. Qb1+ {[%clk 0:04:40.3]} 80... Kc4 {[%clk 0:04:13]} 81. Qc2+
{[%clk 0:04:40.5]} 81... Kb5 {[%clk 0:04:12.6]} 82. Qb3+ {[%clk 0:04:39.3]}
82... Bb4 {[%clk 0:04:12.6]} 83. Qd3+ {[%clk 0:04:39.5]} 83... Ka4 {[%clk
0:04:12.8]} 84. Qc2+ {[%clk 0:04:34.4]} 84... Ka3 {[%clk 0:04:13.3]} 85. Qb1
{[%clk 0:04:30]} 85... Qe4 {[%clk 0:04:09.2]} 86. Qa1+ {[%clk 0:04:30.3]} 86...
Kb3 {[%clk 0:04:10]} 87. Qd1+ {[%clk 0:04:30.6]} 87... Kb2 {[%clk 0:04:10.6]}
88. Qa4 {[%clk 0:04:07.7]} 88... Kc1 {[%clk 0:04:07.3]} 89. Qa1+ {[%clk
0:04:06.3]} 89... Qb1 {[%clk 0:04:07.3]} 90. Qd4 {[%clk 0:04:06.5]} 90... Bd2
{[%clk 0:04:02.5]} 91. Kf1 {[%clk 0:03:53.2]} 91... Qb5+ {[%clk 0:03:49]} 92.
Kg1 {[%clk 0:03:46.1]} 92... Kd1 {[%clk 0:03:44.5]} 93. Qa1+ {[%clk 0:03:46.2]}
93... Kc2 {[%clk 0:03:44.2]} 94. Qa2+ {[%clk 0:03:44.6]} 94... Kc1 {[%clk
0:03:43.7]} 95. Qa1+ {[%clk 0:03:44.4]} 95... Qb1 {[%clk 0:03:43.7]} 96. Qd4
{[%clk 0:03:26.2]} 96... Kc2+ {[%clk 0:03:44]} 97. Kg2 {[%clk 0:03:24.5]} 97...
Qb7+ {[%clk 0:03:44]} 98. Kg1 {[%clk 0:03:24.2]} 98... Qe4 {[%clk 0:03:27.5]}
99. Qa1 {[%clk 0:03:12.2]} 99... Bc1 {[%clk 0:03:24.4]} 100. Qa2+ {[%clk
0:03:06.4]} 100... Kd1 {[%clk 0:02:44.2]} 101. Qb3+ {[%clk 0:03:00.8]} 101...
Ke2 {[%clk 0:02:43.5]} 102. Qa2+ {[%clk 0:02:58]} 102... Bd2 {[%clk 0:02:41.2]}
103. Qa1 {[%clk 0:02:57.5]} 103... Bxe3 {[%clk 0:02:13.9]} 104. Qa6+ {[%clk
0:02:54.4]} 104... Qd3 {[%clk 0:02:13.5]} 105. Qa2+ {[%clk 0:02:54.7]} 105...
Kf3 {[%clk 0:02:02]} 106. Qa8+ {[%clk 0:02:29.2]} 106... Qe4 {[%clk 0:02:02.8]}
107. Qa2 {[%clk 0:02:28.3]} 107... Bc1 {[%clk 0:01:37]} 108. Qb3+ {[%clk
0:02:26.2]} 108... Ke2 {[%clk 0:01:37.5]} 109. Qa2+ {[%clk 0:02:26.8]} 109...
Bd2 {[%clk 0:01:28.1]} 110. Qa1 {[%clk 0:02:25.2]} 110... Kd3 {[%clk 0:01:23.3]}
111. Qb1+ {[%clk 0:02:22.4]} 111... Kd4 {[%clk 0:01:21.2]} 112. Qb6+ {[%clk
0:02:22.8]} 112... Kc3 {[%clk 0:01:21.7]} 113. Qc5+ {[%clk 0:02:20.1]} 113...
Kb2 {[%clk 0:01:21.4]} 114. Qb5+ {[%clk 0:02:19.9]} 114... Kc2 {[%clk
0:01:21.2]} 115. Qa6 {[%clk 0:02:17.6]} 115... Bc3 {[%clk 0:01:20.8]} 116. Qa2+
{[%clk 0:02:16.8]} 116... Kc1 {[%clk 0:01:19.7]} 117. Qa3+ {[%clk 0:02:16.9]}
117... Bb2 {[%clk 0:01:20]} 118. Qc5+ {[%clk 0:02:17.5]} 118... Qc2 {[%clk
0:01:20.3]} 119. Qd5 {[%clk 0:02:13.9]} 119... Ba3 {[%clk 0:01:12.7]} 120. Qe5
{[%clk 0:02:01.9]} 120... Bc5 {[%clk 0:01:12.9]} 121. Qa1+ {[%clk 0:01:58.5]}
121... Kd2 {[%clk 0:01:13]} 122. Qe5 {[%clk 0:01:59.1]} 122... Qb1+ {[%clk
0:01:04.5]} 123. Kh2 {[%clk 0:01:58.7]} 123... Bxf2 {[%clk 0:01:04.2]} 124. Qa5+
{[%clk 0:01:57]} 124... Kd1 {[%clk 0:01:01.2]} 125. Qd5+ {[%clk 0:01:52.5]}
125... Kc1 {[%clk 0:00:56.8]} 126. Qc4+ {[%clk 0:01:42.9]} 126... Qc2 {[%clk
0:00:57.3]} 127. Qf1+ {[%clk 0:01:43.7]} 127... Kd2 {[%clk 0:00:56]} 128. Qb5
{[%clk 0:01:25.7]} 128... Be3 {[%clk 0:00:53.7]} 129. Qd5+ {[%clk 0:01:24.3]}
129... Ke1+ {[%clk 0:00:52.5]} 130. Kh1 {[%clk 0:01:20.5]} 130... Qe4+ {[%clk
0:00:52.7]} 131. Qxe4 {[%clk 0:01:22]} 131... fxe4 {[%clk 0:00:54.6]} 0-1

[Event "GrandPrix_30.05"]
[Site "Chess.com"]
[Date "2020.05.30"]
[Round "2"]
[White "Nuvas"]
[Black "Sergey_Krivenko"]
[Result "1-0"]
[WhiteElo "2267"]
[BlackElo "2086"]
[TimeControl "600+2"]
[EndTime "8:36:22 PDT"]
[Termination "Nuvas won by resignation"]

1. d4 {[%clk 0:10:01.9]} 1... d5 {[%clk 0:09:59.2]} 2. c4 {[%clk 0:10:03.1]}
2... c6 {[%clk 0:09:59.8]} 3. Nf3 {[%clk 0:10:03.9]} 3... Nf6 {[%clk 0:09:59.4]}
4. Nc3 {[%clk 0:10:04.6]} 4... dxc4 {[%clk 0:09:58.9]} 5. e4 {[%clk 0:10:03.9]}
5... b5 {[%clk 0:09:56.3]} 6. Be2 {[%clk 0:10:04.9]} 6... b4 {[%clk 0:09:35.9]}
7. Na4 {[%clk 0:10:05.9]} 7... Nxe4 {[%clk 0:09:29]} 8. Bxc4 {[%clk 0:10:07.1]}
8... Nd6 {[%clk 0:09:28]} 9. Bd3 {[%clk 0:10:08.1]} 9... Bf5 {[%clk 0:09:25.1]}
10. O-O {[%clk 0:09:59.4]} 10... e6 {[%clk 0:09:22.4]} 11. Bf4 {[%clk
0:09:49.5]} 11... Bxd3 {[%clk 0:09:20.3]} 12. Qxd3 {[%clk 0:09:50.1]} 12... Be7
{[%clk 0:09:19.9]} 13. Rac1 {[%clk 0:09:42.1]} 13... O-O {[%clk 0:09:06.8]} 14.
Rfd1 {[%clk 0:09:42.6]} 14... Nf5 {[%clk 0:08:29.2]} 15. Bxb8 {[%clk 0:09:31.3]}
15... Rxb8 {[%clk 0:08:31.1]} 16. Ne5 {[%clk 0:09:30.7]} 16... Qd5 {[%clk
0:07:47.1]} 17. Nxc6 {[%clk 0:09:30.1]} 17... Rbc8 {[%clk 0:07:43.2]} 18. Qxf5
{[%clk 0:09:19.4]} 1-0

[Event "GrandPrix_30.05"]
[Site "Chess.com"]
[Date "2020.05.30"]
[Round "2"]
[White "ZefirKa"]
[Black "Bestromano"]
[Result "1-0"]
[WhiteElo "2081"]
[BlackElo "2120"]
[TimeControl "600+2"]
[EndTime "8:37:08 PDT"]
[Termination "ZefirKa won by resignation"]

1. e4 {[%clk 0:10:01.9]} 1... c5 {[%clk 0:09:59.7]} 2. Nf3 {[%clk 0:10:02.1]}
2... g6 {[%clk 0:10:01.2]} 3. d4 {[%clk 0:10:03]} 3... cxd4 {[%clk 0:10:03.1]}
4. Nxd4 {[%clk 0:10:04.6]} 4... Nc6 {[%clk 0:10:04.2]} 5. c4 {[%clk 0:09:59.5]}
5... Nf6 {[%clk 0:10:04.7]} 6. Nc3 {[%clk 0:09:59]} 6... d6 {[%clk 0:10:04.5]}
7. Be2 {[%clk 0:09:55.4]} 7... Nxd4 {[%clk 0:10:03.5]} 8. Qxd4 {[%clk
0:09:55.9]} 8... Bg7 {[%clk 0:10:05.1]} 9. Bg5 {[%clk 0:09:55.9]} 9... O-O
{[%clk 0:10:05.8]} 10. Qd2 {[%clk 0:09:56.7]} 10... a5 {[%clk 0:10:03.5]} 11.
O-O {[%clk 0:09:47.4]} 11... a4 {[%clk 0:10:04]} 12. Rfd1 {[%clk 0:09:13.5]}
12... Be6 {[%clk 0:09:46.9]} 13. e5 {[%clk 0:08:18.3]} 13... dxe5 {[%clk
0:09:46.1]} 14. Qxd8 {[%clk 0:08:19.1]} 14... Rfxd8 {[%clk 0:09:48]} 15. Rxd8+
{[%clk 0:08:20.1]} 15... Rxd8 {[%clk 0:09:49.4]} 16. Nxa4 {[%clk 0:08:21.4]}
16... h6 {[%clk 0:09:37.5]} 17. Be3 {[%clk 0:08:16.7]} 17... Ng4 {[%clk
0:09:19.4]} 18. Bxg4 {[%clk 0:07:29.6]} 18... Bxg4 {[%clk 0:09:21.3]} 19. b3
{[%clk 0:07:18.4]} 19... Bd7 {[%clk 0:09:15.5]} 20. Rd1 {[%clk 0:07:07.9]} 20...
Kf8 {[%clk 0:08:48.2]} 21. Bb6 {[%clk 0:07:08]} 1-0

[Event "GrandPrix_30.05"]
[Site "Chess.com"]
[Date "2020.05.30"]
[Round "2"]
[White "Kostya_Nikologorskiy"]
[Black "Kildepiotr"]
[Result "1-0"]
[WhiteElo "2224"]
[BlackElo "2035"]
[TimeControl "600+2"]
[EndTime "8:37:33 PDT"]
[Termination "Kostya_Nikologorskiy won by resignation"]

1. e4 {[%clk 0:10:01.9]} 1... g6 {[%clk 0:09:57]} 2. d4 {[%clk 0:10:00.9]} 2...
Bg7 {[%clk 0:09:58.3]} 3. Nc3 {[%clk 0:10:02.4]} 3... c6 {[%clk 0:09:59.6]} 4.
Bf4 {[%clk 0:09:59.9]} 4... d6 {[%clk 0:09:51.6]} 5. Qd2 {[%clk 0:10:00]} 5...
Nd7 {[%clk 0:09:52.4]} 6. O-O-O {[%clk 0:09:59.5]} 6... e5 {[%clk 0:09:53.2]} 7.
Be3 {[%clk 0:09:55.5]} 7... Ngf6 {[%clk 0:09:53.6]} 8. f3 {[%clk 0:09:55.5]}
8... Qc7 {[%clk 0:09:43.1]} 9. h4 {[%clk 0:09:55.1]} 9... h5 {[%clk 0:09:43.1]}
10. Nh3 {[%clk 0:09:50.5]} 10... b5 {[%clk 0:09:38.8]} 11. dxe5 {[%clk
0:09:24.4]} 11... dxe5 {[%clk 0:09:38.3]} 12. Bxb5 {[%clk 0:08:40.4]} 12... cxb5
{[%clk 0:09:36]} 13. Nxb5 {[%clk 0:08:42.3]} 13... Qc6 {[%clk 0:09:24.2]} 14.
Nd6+ {[%clk 0:08:14.6]} 14... Kf8 {[%clk 0:09:08.6]} 15. Ng5 {[%clk 0:08:13.9]}
15... Nb6 {[%clk 0:08:28.1]} 16. Ndxf7 {[%clk 0:07:53.8]} 16... Be6 {[%clk
0:08:20.3]} 17. Nxe5 {[%clk 0:07:23]} 17... Qe8 {[%clk 0:08:05.6]} 18. Qd6+
{[%clk 0:07:13.6]} 1-0

[Event "GrandPrix_30.05"]
[Site "Chess.com"]
[Date "2020.05.30"]
[Round "2"]
[White "AlexVanGog"]
[Black "BakaPG"]
[Result "0-1"]
[WhiteElo "2510"]
[BlackElo "2332"]
[TimeControl "600+2"]
[EndTime "8:39:36 PDT"]
[Termination "BakaPG won by checkmate"]

1. d4 {[%clk 0:10:01.9]} 1... d5 {[%clk 0:09:59.7]} 2. c4 {[%clk 0:10:02.3]}
2... c6 {[%clk 0:09:59.2]} 3. Nf3 {[%clk 0:10:03]} 3... Nf6 {[%clk 0:09:58.6]}
4. Nc3 {[%clk 0:10:04.2]} 4... e6 {[%clk 0:09:51.3]} 5. Bg5 {[%clk 0:10:03.3]}
5... dxc4 {[%clk 0:09:50.9]} 6. e4 {[%clk 0:09:59.6]} 6... b5 {[%clk 0:09:50.6]}
7. e5 {[%clk 0:10:00.5]} 7... h6 {[%clk 0:09:50.4]} 8. Bh4 {[%clk 0:10:01.5]}
8... g5 {[%clk 0:09:51.5]} 9. Nxg5 {[%clk 0:10:02.4]} 9... hxg5 {[%clk
0:09:52.5]} 10. Bxg5 {[%clk 0:10:03.8]} 10... Be7 {[%clk 0:09:53.7]} 11. exf6
{[%clk 0:10:02.1]} 11... Bxf6 {[%clk 0:09:54.6]} 12. Bxf6 {[%clk 0:10:02.8]}
12... Qxf6 {[%clk 0:09:55.4]} 13. g3 {[%clk 0:09:44.7]} 13... Bb7 {[%clk
0:09:53.1]} 14. Bg2 {[%clk 0:09:45.5]} 14... Na6 {[%clk 0:09:52.1]} 15. a4
{[%clk 0:08:15.8]} 15... O-O-O {[%clk 0:07:58.8]} 16. axb5 {[%clk 0:08:08.4]}
16... cxb5 {[%clk 0:07:57.1]} 17. Bxb7+ {[%clk 0:08:07.5]} 17... Kxb7 {[%clk
0:07:58.1]} 18. Nxb5 {[%clk 0:08:01.5]} 18... Nb4 {[%clk 0:07:37.1]} 19. Rxa7+
{[%clk 0:06:59.5]} 19... Kb6 {[%clk 0:07:34.6]} 20. Qa4 {[%clk 0:07:00.5]} 20...
Nd3+ {[%clk 0:07:32.6]} 21. Kd2 {[%clk 0:06:59.7]} 21... Qxf2+ {[%clk
0:07:20.2]} 22. Kc3 {[%clk 0:07:00.6]} 22... Qxb2+ {[%clk 0:07:18]} 23. Kxc4
{[%clk 0:07:01.6]} 23... Rxd4+ {[%clk 0:06:51.4]} 24. Nxd4 {[%clk 0:06:51.1]}
24... Ne5# {[%clk 0:06:51]} 0-1